fUSD/lending_fUSD_20241207
["ID","MTS","AMOUNT","RATE_DAILY","PERIOD"]
[344548596,1733541084713,-1500.0,0.00015319,2]
[344548597,1733541084722,-152.0,0.00015321,4]
[344548598,1733541084732,-618.95312618,0.00015333,2]
[344548599,1733541084742,-562.43,0.00015333,2]
[344548600,1733541084752,-500.0,0.00015333,2]
[344548601,1733541084762,-500.0,0.00015333,2]
[344548602,1733541084772,-276.18530225,0.00015333,2]
[344548603,1733541084782,-500.0,0.00015333,2]
[344548604,1733541084793,-156.21474,0.00015333,2]
[344548605,1733541084804,-569.03,0.00015333,2]
[344548606,1733541084815,-712.37,0.00015333,2]
[344548607,1733541084824,-755.27,0.00015333,2]
[344548608,1733541084834,-500.0,0.00015333,2]
[344548609,1733541084844,-500.0,0.00015333,2]
[344548610,1733541084854,-1134.32,0.00015333,2]
[344548611,1733541084864,-500.0,0.00015333,2]
[344548612,1733541084875,-729.35,0.00015333,2]
[344548613,1733541084885,-655.62,0.00015333,2]
[344548614,1733541084895,-500.0,0.00015333,2]
[344548615,1733541084904,-559.97,0.00015333,2]
[344548616,1733541084914,-629.17,0.00015333,2]
[344548617,1733541084924,-500.0,0.00015333,2]
[344548618,1733541084934,-522.4,0.00015333,2]
[344548619,1733541084944,-470.41064425,0.00015333,2]
[344548620,1733541084954,-558.13,0.00015333,2]
[344548621,1733541084965,-216.39001122,0.00015333,2]
[344548622,1733541084975,-596.81,0.00015333,2]
[344548623,1733541084985,-1715.02,0.00015333,2]
[344548624,1733541084996,-743.73,0.00015333,2]
[344548625,1733541085006,-607.63,0.00015333,2]
[344548626,1733541085016,-3248.7,0.00015333,2]
[344548627,1733541085027,-500.0,0.00015333,2]
[344548628,1733541085037,-857.46,0.00015333,2]
[344548629,1733541085049,-3403.71,0.00015333,2]
[344548630,1733541085059,-546.54,0.00015333,2]
[344548631,1733541085068,-500.0,0.00015333,2]
[344548632,1733541085079,-700.0,0.00015333,2]
[344548633,1733541085089,-545.2,0.00015333,2]
[344548634,1733541085099,-922.6,0.00015333,2]
[344548635,1733541085109,-506.19,0.00015333,2]
[344548636,1733541085119,-1285.83,0.00015333,2]
[344548637,1733541085129,-553.43,0.00015333,2]
[344548638,1733541085139,-500.0,0.00015333,2]
[344548639,1733541085150,-1097.94,0.00015333,2]
[344548640,1733541085160,-753.13,0.00015333,2]
[344548641,1733541085170,-893.85,0.00015333,2]
[344548642,1733541085180,-610.6,0.00015333,2]
[344548643,1733541085190,-500.0,0.00015333,2]
[344548644,1733541085200,-395.71002516,0.00015333,2]
[344548645,1733541085210,-500.0,0.00015333,2]
[344548646,1733541085219,-2397.76,0.00015333,2]
[344548647,1733541085229,-500.0,0.00015333,2]
[344548648,1733541085239,-500.0,0.00015333,2]
[344548649,1733541085248,-500.0,0.00015333,2]
[344548650,1733541085258,-500.0,0.00015333,2]
[344548651,1733541085268,-1962.86,0.00015333,2]
[344548652,1733541085279,-500.0,0.00015333,2]
[344548653,1733541085289,-3708.05,0.00015333,2]
[344548654,1733541085302,-325.58218852,0.00015333,2]
[344548655,1733541085313,-500.0,0.00015333,2]
[344548656,1733541085323,-500.0,0.00015333,2]
[344548657,1733541085332,-1882.97,0.00015333,2]
[344548658,1733541085342,-500.0,0.00015333,2]
[344548659,1733541085351,-555.52,0.00015333,2]
[344548660,1733541085361,-500.0,0.00015333,2]
[344548661,1733541085371,-500.0,0.00015333,2]
[344548662,1733541085381,-841.17,0.00015333,2]
[344548663,1733541085391,-584.44,0.00015333,2]
[344548664,1733541085400,-656.6,0.00015333,2]
[344548665,1733541085410,-868.73,0.00015333,2]
[344548666,1733541085420,-691.9,0.00015333,2]
[344548667,1733541085429,-730.65,0.00015333,2]
[344548668,1733541085439,-500.0,0.00015333,2]
[344548669,1733541085449,-500.0,0.00015333,2]
[344548670,1733541085459,-500.0,0.00015333,2]
[344548671,1733541085470,-3564.03,0.00015333,2]
[344548672,1733541085480,-1736.61,0.00015333,2]
[344548673,1733541085490,-2313.64,0.00015333,10]
[344548674,1733541085501,-2880.03,0.00015333,2]
[344548675,1733541085511,-574.1,0.00015333,2]
[344548676,1733541085522,-605.61,0.00015333,2]
[344548677,1733541085531,-1145.2,0.00015333,2]
[344548678,1733541085541,-500.0,0.00015333,2]
[344548679,1733541085552,-500.0,0.00015333,2]
[344548680,1733541085563,-500.0,0.00015333,2]
[344548681,1733541085572,-573.3,0.00015333,2]
[344548682,1733541085582,-500.0,0.00015333,2]
[344548683,1733541085594,-977.63,0.00015333,2]
[344548684,1733541085604,-199.6865116,0.00015333,2]
[344548685,1733541085614,-857.76,0.00015333,2]
[344548686,1733541085624,-866.03,0.00015333,2]
[344548687,1733541085635,-4199.14,0.00015333,2]
[344548688,1733541085645,-843.87,0.00015333,2]
[344548689,1733541085654,-2318.54,0.00015333,2]
[344548690,1733541085664,-308.62737395,0.00015333,2]
[344548691,1733541085674,-500.0,0.00015333,2]
[344548692,1733541085684,-513.08,0.00015334,2]
[344548693,1733541085694,-212.40747657,0.00015334,2]
[344548694,1733541085703,-500.0,0.00015334,2]
[344548695,1733541085712,-500.0,0.00015334,2]
[344548696,1733541085722,-500.0,0.00015334,2]
[344548697,1733541085732,-2000.0,0.00015334,2]
[344548698,1733541085741,-500.0,0.00015334,2]
[344548699,1733541085751,-1822.29,0.00015334,2]
[344548700,1733541085760,-500.0,0.00015334,2]
[344548701,1733541085770,-541.82949381,0.00015334,2]
[344548702,1733541085780,-4455.3,0.00015334,2]
[344548703,1733541085791,-561.77,0.00015334,2]
[344548704,1733541085802,-963.02,0.00015334,2]
[344548705,1733541085812,-8683.14,0.00015334,7]
[344548706,1733541085822,-2668.21,0.00015334,2]
[344548707,1733541085832,-500.0,0.00015334,2]
[344548708,1733541085842,-1941.45,0.00015334,2]
[344548709,1733541085852,-627.31,0.00015335,2]
[344548710,1733541085862,-500.0,0.00015335,2]
[344548711,1733541085872,-500.0,0.00015335,2]
[344548712,1733541085882,-533.44,0.00015335,2]
[344548713,1733541085892,-500.0,0.00015335,2]
[344548714,1733541085903,-546.95,0.00015335,2]
[344548715,1733541085914,-500.0,0.00015335,2]
[344548716,1733541085924,-500.0,0.00015335,2]
[344548717,1733541085935,-236.59924884,0.00015335,2]
[344548718,1733541085945,-400.0,0.00015336,2]
[344548719,1733541085955,-490.28601241,0.00015336,2]
[344548720,1733541085965,-729.39,0.00015337,2]
[344548721,1733541085975,-400.0,0.00015337,2]
[344548722,1733541085985,-241.891658,0.00015338,2]
[344548723,1733541085995,-241.891658,0.00015338,2]
[344548724,1733541086005,-959.0,0.00015342,2]
[344548725,1733541086014,-1500.0,0.00015356,2]
[344548726,1733541086025,-1500.0,0.00015374,2]
[344548727,1733541086035,-1500.0,0.00015384,2]
[344548728,1733541086047,-15892.50245146,0.000154,2]
[344548729,1733541086057,-483.32341526,0.000154,2]
[344548730,1733541086066,-151.0,0.000154,2]
[344548731,1733541086076,-373.60261,0.000154,2]
[344548732,1733541086086,-373.60261,0.000154,2]
[344548733,1733541086096,-151.0,0.000154,2]
[344548734,1733541086106,-151.0,0.000154,2]
[344548735,1733541086116,-1500.0,0.00015407,2]
[344548736,1733541086126,-200.0,0.0001542,2]
[344548737,1733541086136,-150.0,0.00015421,2]
[344548738,1733541086146,-1500.0,0.00015448,2]
[344548739,1733541086155,-150.0,0.00015451,2]
[344548740,1733541086165,-1163.676613,0.00015452,2]
[344548741,1733541086175,-1163.676613,0.00015452,2]
[344548742,1733541086184,-151.0,0.00015452,2]
[344548743,1733541086194,-1113.119083,0.00015452,2]
[344548744,1733541086203,-151.0,0.00015452,2]
[344548745,1733541086213,-1113.119083,0.00015452,2]
[344548746,1733541086224,-1500.0,0.00015463,2]
[344548747,1733541086234,-1500.0,0.00015476,2]
[344548748,1733541086244,-1500.0,0.00015483,2]
[344548749,1733541086254,-1500.0,0.00015497,2]
[344548750,1733541086264,-200.0,0.00015498,3]
[344548751,1733541086273,-200.0,0.00015498,3]
[344548752,1733541086283,-200.0,0.00015498,2]
[344548753,1733541086293,-200.0,0.00015498,2]
[344548754,1733541086305,-150.0,0.00015501,2]
[344548755,1733541086314,-151.0,0.00015508,2]
[344548756,1733541086323,-332.205209,0.00015508,2]
[344548757,1733541086333,-342.797208,0.00015508,2]
[344548758,1733541086344,-342.797208,0.00015508,2]
[344548759,1733541086354,-332.205209,0.00015508,2]
[344548760,1733541086364,-439.361201,0.00015508,2]
[344548761,1733541086374,-439.361201,0.00015508,2]
[344548762,1733541086384,-151.0,0.00015508,2]
[344548763,1733541086394,-1685.339669,0.00015528,2]
[344548764,1733541086404,-1685.339669,0.00015528,2]
[344548765,1733541086414,-520.28253,0.00015528,2]
[344548766,1733541086424,-520.28253,0.00015528,2]
[344548767,1733541086434,-1056.0,0.00015553,2]
[344548768,1733541086444,-152.0,0.00015554,5]
[344548769,1733541086454,-1500.0,0.00015561,2]
[344548770,1733541086464,-189.55,0.00015565,2]
[344548771,1733541086475,-1500.0,0.00015572,2]
[344548772,1733541086484,-1500.0,0.00015583,2]
[344548773,1733541086494,-150.0,0.00015591,2]
[344548774,1733541086504,-562.43,0.00015607,2]
[344548775,1733541086515,-355.21598463,0.00015607,2]
[344548776,1733541086524,-500.0,0.00015607,2]
[344548777,1733541086534,-500.0,0.00015607,2]
[344548778,1733541086544,-156.21474,0.00015607,2]
[344548779,1733541086556,-569.03,0.00015607,2]
[344548780,1733541086566,-712.37,0.00015607,2]
[344548781,1733541086576,-755.27,0.00015607,2]
[344548782,1733541086586,-500.0,0.00015607,2]
[344548783,1733541086601,-500.0,0.00015607,2]
[344548784,1733541086611,-1134.32,0.00015607,2]
[344548785,1733541086621,-500.0,0.00015607,2]
[344548786,1733541086631,-729.35,0.00015607,2]
[344548787,1733541086641,-655.62,0.00015607,2]
[344548788,1733541086652,-500.0,0.00015607,2]
[344548789,1733541086661,-559.97,0.00015607,2]
[344548790,1733541086672,-629.17,0.00015607,2]
[344548791,1733541086682,-151.0,0.00015607,2]
[344548792,1733541086692,-500.0,0.00015607,2]
[344548793,1733541086702,-151.0,0.00015607,2]
[344548794,1733541086712,-522.4,0.00015607,2]
[344548795,1733541086722,-558.13,0.00015607,2]
[344548796,1733541086995,-596.81,0.00015607,2]
[344548797,1733541087016,-1715.02,0.00015607,2]
[344548798,1733541087026,-743.73,0.00015607,2]
[344548799,1733541087036,-607.63,0.00015607,2]
[344548800,1733541087047,-3248.7,0.00015607,2]
[344548801,1733541087057,-500.0,0.00015607,2]
[344548802,1733541087067,-857.46,0.00015607,2]
[344548803,1733541087077,-3403.71,0.00015607,2]
[344548804,1733541087087,-546.54,0.00015607,2]
[344548805,1733541087097,-500.0,0.00015607,2]
[344548806,1733541087107,-700.0,0.00015607,2]
[344548807,1733541087117,-545.2,0.00015607,2]
[344548808,1733541087127,-922.6,0.00015607,2]
[344548809,1733541087137,-506.19,0.00015607,2]
[344548810,1733541087147,-1285.83,0.00015607,2]
[344548811,1733541087157,-553.43,0.00015607,2]
[344548812,1733541087167,-500.0,0.00015607,2]
[344548813,1733541087177,-1097.94,0.00015607,2]
[344548814,1733541087187,-753.13,0.00015607,2]
[344548815,1733541087196,-893.85,0.00015607,2]
[344548816,1733541087206,-610.6,0.00015607,2]
[344548817,1733541087216,-332.327159,0.00015607,2]
[344548818,1733541087226,-500.0,0.00015607,2]
[344548819,1733541087236,-332.327159,0.00015607,2]
[344548820,1733541087246,-500.0,0.00015607,2]
[344548821,1733541087255,-2397.76,0.00015607,2]
[344548822,1733541087265,-567.14275905,0.00015607,2]
[344548823,1733541087274,-500.0,0.00015607,2]
[344548824,1733541087284,-500.0,0.00015607,2]
[344548825,1733541087293,-500.0,0.00015607,2]
[344548826,1733541087306,-1962.86,0.00015607,2]
[344548827,1733541087316,-500.0,0.00015607,2]
[344548828,1733541087326,-3708.05,0.00015607,2]
[344548829,1733541087336,-500.0,0.00015607,2]
[344548830,1733541087346,-500.0,0.00015607,2]
[344548831,1733541087356,-1882.97,0.00015607,2]
[344548832,1733541087366,-500.0,0.00015607,2]
[344548833,1733541087375,-555.52,0.00015607,2]
[344548834,1733541087385,-500.0,0.00015607,2]
[344548835,1733541087395,-500.0,0.00015607,2]
[344548836,1733541087405,-841.17,0.00015607,2]
[344548837,1733541087414,-584.44,0.00015607,2]
[344548838,1733541087423,-656.6,0.00015607,2]
[344548839,1733541087433,-868.73,0.00015607,2]
[344548840,1733541087443,-691.9,0.00015607,2]
[344548841,1733541087452,-730.65,0.00015607,2]
[344548842,1733541087462,-500.0,0.00015607,2]
[344548843,1733541087472,-500.0,0.00015607,2]
[344548844,1733541087482,-500.0,0.00015607,2]
[344548845,1733541087491,-3564.03,0.00015607,2]
[344548846,1733541087502,-1736.61,0.00015607,2]
[344548847,1733541087512,-2313.64,0.00015607,10]
[344548848,1733541087522,-2880.03,0.00015607,2]
[344548849,1733541087531,-574.1,0.00015607,2]
[344548850,1733541087541,-605.61,0.00015607,2]
[344548851,1733541087552,-1145.2,0.00015607,2]
[344548852,1733541087562,-500.0,0.00015607,2]
[344548853,1733541087572,-307.08492166,0.00015607,2]
[344548854,1733541087581,-646.93650227,0.00015607,2]
[344548855,1733541087593,-500.0,0.00015607,2]
[344548856,1733541087603,-977.63,0.00015607,2]
[344548857,1733541087613,-857.76,0.00015607,2]
[344548858,1733541087623,-866.03,0.00015607,2]
[344548859,1733541087633,-4199.14,0.00015607,2]
[344548860,1733541087643,-843.87,0.00015607,2]
[344548861,1733541087653,-2318.54,0.00015607,2]
[344548862,1733541087663,-500.0,0.00015607,2]
[344548863,1733541087674,-151.0,0.00015608,2]
[344548864,1733541087685,-513.08,0.00015608,2]
[344548865,1733541087694,-377.05038463,0.00015608,2]
[344548866,1733541087703,-500.0,0.00015608,2]
[344548867,1733541087712,-10000.0,0.00015608,2]
[344548868,1733541087722,-10000.0,0.00015608,2]
[344548869,1733541087732,-10000.0,0.00015608,2]
[344548870,1733541087742,-10000.0,0.00015608,2]
[344548871,1733541087751,-500.0,0.00015608,2]
[344548872,1733541087762,-2256.053409,0.00015608,2]
[344548873,1733541087771,-2256.053409,0.00015608,2]
[344548874,1733541087781,-2000.0,0.00015608,2]
[344548875,1733541087791,-500.0,0.00015608,2]
[344548876,1733541087802,-1822.29,0.00015608,2]
[344548877,1733541087812,-151.0,0.00015608,2]
[344548878,1733541087822,-753.454212,0.00015608,2]
[344548879,1733541087831,-753.454212,0.00015608,2]
[344548880,1733541087841,-738.039794,0.00015608,2]
[344548881,1733541087850,-738.039794,0.00015608,2]
[344548882,1733541087860,-151.0,0.00015608,2]
[344548883,1733541087870,-151.0,0.00015608,2]
[344548884,1733541087879,-500.0,0.00015608,2]
[344548885,1733541087889,-4455.3,0.00015608,2]
[344548886,1733541087899,-151.0,0.00015608,2]
[344548887,1733541087909,-151.0,0.00015608,2]
[344548888,1733541087919,-3459.985617,0.00015608,2]
[344548889,1733541087929,-3459.985617,0.00015608,2]
[344548890,1733541087939,-561.77,0.00015608,2]
[344548891,1733541087959,-175.0,0.00015608,2]
[344548892,1733541087970,-530.080062,0.00015608,2]
[344548893,1733541087980,-963.02,0.00015608,2]
[344548894,1733541087990,-530.080062,0.00015608,2]
[344548895,1733541088001,-8683.14,0.00015608,7]
[344548896,1733541088011,-151.0,0.00015608,2]
[344548897,1733541088022,-2668.21,0.00015608,2]
[344548898,1733541088032,-251.132521,0.00015608,2]
[344548899,1733541088042,-251.132521,0.00015608,2]
[344548900,1733541088052,-500.0,0.00015608,2]
[344548901,1733541088063,-158.143529,0.00015608,2]
[344548902,1733541088073,-461.635771,0.00015608,2]
[344548903,1733541088083,-454.039255,0.00015608,2]
[344548904,1733541088093,-158.143529,0.00015608,2]
[344548905,1733541088104,-454.039255,0.00015608,2]
[344548906,1733541088114,-461.635771,0.00015608,2]
[344548907,1733541088123,-1941.45,0.00015608,2]
[344548908,1733541088133,-3507.381307,0.00015608,2]
[344548909,1733541088143,-3507.381307,0.00015608,2]
[344548910,1733541088153,-1295.100569,0.00015608,2]
[344548911,1733541088163,-1295.100569,0.00015608,2]
[344548912,1733541088173,-420.421252,0.00015608,2]
[344548913,1733541088183,-420.421252,0.00015608,2]
[344548914,1733541088193,-160.529952,0.00015609,2]
[344548915,1733541088203,-160.529952,0.00015609,2]
[344548916,1733541088212,-627.31,0.00015609,2]
[344548917,1733541088223,-260.84051767,0.00015609,2]
[344548918,1733541088232,-500.0,0.00015609,2]
[344548919,1733541088242,-151.0,0.00015609,2]
[344548920,1733541088252,-533.44,0.00015609,2]
[344548921,1733541088262,-500.0,0.00015609,2]
[344548922,1733541088272,-180.38601,0.00015609,2]
[344548923,1733541088281,-180.38601,0.00015609,2]
[344548924,1733541088291,-758.8541,0.00015609,2]
[344548925,1733541088302,-758.8541,0.00015609,2]
[344548926,1733541088312,-546.95,0.00015609,2]
[344548927,1733541088322,-592.83154979,0.00015609,2]
[344548928,1733541088333,-151.0,0.00015609,2]
[344548929,1733541088343,-500.0,0.00015609,2]
[344548930,1733541088353,-495.707478,0.00015609,2]
[344548931,1733541088363,-495.707478,0.00015609,2]
[344548932,1733541088373,-416.180459,0.00015609,2]
[344548933,1733541088383,-416.180459,0.00015609,2]
[344548934,1733541088393,-151.0,0.00015609,2]
[344548935,1733541088403,-1001.716276,0.00015609,2]
[344548936,1733541088413,-1001.716276,0.00015609,2]
[344548937,1733541088423,-729.39,0.00015611,2]
[344548938,1733541088432,-959.0,0.00015616,2]
[344548939,1733541088442,-1500.0,0.00015629,2]
[344548940,1733541088452,-1500.0,0.0001564,2]
[344548941,1733541088462,-500.0,0.0001566,2]
[344548942,1733541088472,-500.0,0.0001566,2]
[344548943,1733541088482,-500.0,0.0001566,2]
[344548944,1733541088492,-500.0,0.0001566,2]
[344548945,1733541088502,-500.0,0.0001566,2]
[344548946,1733541088511,-500.0,0.0001566,2]
[344548947,1733541088521,-500.0,0.0001566,2]
[344548948,1733541088530,-402.09,0.0001566,2]
[344548949,1733541088540,-500.0,0.0001566,2]
[344548950,1733541088550,-500.0,0.0001566,2]
[344548951,1733541088560,-500.0,0.0001566,2]
[344548952,1733541088570,-500.0,0.0001566,2]
[344548953,1733541088579,-500.0,0.0001566,2]
[344548954,1733541088590,-500.0,0.0001566,2]
[344548955,1733541088602,-500.0,0.0001566,2]
[344548956,1733541088612,-500.0,0.0001566,2]
[344548957,1733541088622,-500.0,0.0001566,2]
[344548958,1733541088631,-500.0,0.0001566,2]
[344548959,1733541088642,-500.0,0.0001566,2]
[344548960,1733541088652,-500.0,0.0001566,2]
[344548961,1733541088662,-500.0,0.0001566,2]
[344548962,1733541088673,-500.0,0.0001566,2]
[344548963,1733541088683,-500.0,0.0001566,2]
[344548964,1733541088693,-503.64,0.0001566,2]
[344548965,1733541088703,-500.0,0.0001566,2]
[344548966,1733541088713,-500.0,0.0001566,2]
[344548967,1733541088723,-500.0,0.0001566,2]
[344548968,1733541088732,-500.0,0.0001566,2]
[344548969,1733541088742,-500.0,0.0001566,2]
[344548970,1733541088752,-500.0,0.0001566,2]
[344548971,1733541088763,-500.0,0.0001566,2]
[344548972,1733541088773,-500.0,0.0001566,2]
[344548973,1733541088783,-500.0,0.0001566,2]
[344548974,1733541088793,-500.0,0.0001566,2]
[344548975,1733541088808,-500.0,0.0001566,2]
[344548976,1733541088818,-500.0,0.0001566,2]
[344548977,1733541088828,-500.0,0.0001566,2]
[344548978,1733541088838,-500.0,0.0001566,2]
[344548979,1733541088848,-500.0,0.0001566,2]
[344548980,1733541088858,-500.0,0.0001566,2]
[344548981,1733541088868,-500.0,0.0001566,2]
[344548982,1733541088877,-500.0,0.0001566,2]
[344548983,1733541088888,-500.0,0.0001566,2]
[344548984,1733541088898,-500.0,0.0001566,2]
[344548985,1733541088909,-500.0,0.0001566,2]
[344548986,1733541088919,-500.0,0.0001566,2]
[344548987,1733541088928,-500.0,0.0001566,2]
[344548988,1733541088938,-500.0,0.0001566,2]
[344548989,1733541088949,-500.0,0.0001566,2]
[344548990,1733541088959,-500.0,0.0001566,2]
[344548991,1733541088969,-500.0,0.0001566,2]
[344548992,1733541088979,-500.0,0.0001566,2]
[344548993,1733541088990,-500.0,0.0001566,2]
[344548994,1733541089000,-500.0,0.0001566,2]
[344548995,1733541089011,-500.0,0.0001566,2]
[344548996,1733541089022,-500.0,0.0001566,2]
[344548997,1733541089033,-500.0,0.0001566,2]
[344548998,1733541089043,-500.0,0.0001566,2]
[344548999,1733541089055,-500.0,0.0001566,2]
[344549000,1733541089065,-500.0,0.0001566,2]
[344549001,1733541089075,-500.0,0.0001566,2]
[344549002,1733541089085,-500.0,0.0001566,2]
[344549003,1733541089095,-500.0,0.0001566,2]
[344549004,1733541089104,-500.0,0.0001566,2]
[344549005,1733541089114,-500.0,0.0001566,2]
[344549006,1733541089124,-500.0,0.0001566,2]
[344549007,1733541089133,-500.0,0.0001566,2]
[344549008,1733541089143,-500.0,0.0001566,2]
[344549009,1733541089153,-500.0,0.0001566,2]
[344549010,1733541089162,-500.0,0.0001566,2]
[344549011,1733541089172,-500.0,0.0001566,2]
[344549012,1733541089183,-500.0,0.0001566,2]
[344549013,1733541089192,-500.0,0.0001566,2]
[344549014,1733541089202,-500.0,0.0001566,2]
[344549015,1733541089212,-500.0,0.0001566,2]
[344549016,1733541089222,-500.0,0.0001566,2]
[344549017,1733541089232,-500.0,0.0001566,2]
[344549018,1733541089242,-500.0,0.0001566,2]
[344549019,1733541089252,-500.0,0.0001566,2]
[344549020,1733541089262,-500.0,0.0001566,2]
[344549021,1733541089272,-500.0,0.0001566,2]
[344549022,1733541089283,-500.0,0.0001566,2]
[344549023,1733541089293,-500.0,0.0001566,2]
[344549024,1733541089305,-500.0,0.0001566,2]
[344549025,1733541089315,-500.0,0.0001566,2]
[344549026,1733541089325,-500.0,0.0001566,2]
[344549027,1733541089335,-500.0,0.0001566,2]
[344549028,1733541089345,-200.0,0.0001566,2]
[344549029,1733541089356,-500.0,0.0001566,2]
[344549030,1733541089366,-500.0,0.0001566,2]
[344549031,1733541089375,-500.0,0.0001566,2]
[344549032,1733541089386,-500.0,0.0001566,2]
[344549033,1733541089396,-500.0,0.0001566,2]
[344549034,1733541089405,-500.0,0.0001566,2]
[344549035,1733541089503,-500.0,0.0001566,2]
[344549036,1733541089513,-500.0,0.0001566,2]
[344549037,1733541089524,-500.0,0.0001566,2]
[344549038,1733541089535,-471.15,0.0001566,2]
[344549039,1733541089544,-500.0,0.0001566,2]
[344549040,1733541089555,-500.0,0.0001566,2]
[344549041,1733541089565,-500.0,0.0001566,2]
[344549042,1733541089574,-500.0,0.0001566,2]
[344549043,1733541089583,-500.0,0.0001566,2]
[344549044,1733541089597,-500.0,0.0001566,2]
[344549045,1733541089606,-500.0,0.0001566,2]
[344549046,1733541089616,-511.44,0.0001566,2]
[344549047,1733541089626,-500.0,0.0001566,2]
[344549048,1733541089637,-500.0,0.0001566,2]
[344549049,1733541089646,-500.0,0.0001566,2]
[344549050,1733541089655,-500.0,0.0001566,2]
[344549051,1733541089666,-500.0,0.0001566,2]
[344549052,1733541089675,-502.9,0.0001566,2]
[344549053,1733541089685,-500.0,0.0001566,2]
[344549054,1733541089694,-649.78,0.0001566,2]
[344549055,1733541089703,-150.0,0.00015693,2]
[344549056,1733541089712,-1500.0,0.00015727,2]
[344549057,1733541089722,-1500.0,0.00015738,2]
[344549058,1733541089732,-1500.0,0.00015745,2]
[344549059,1733541089741,-1500.0,0.00015763,2]
[344549060,1733541089750,-1500.0,0.00015767,2]
[344549061,1733541089760,-152.0,0.00015787,6]
[344549062,1733541089769,-1500.0,0.00015787,2]
[344549063,1733541089778,-200.0,0.00015798,2]
[344549064,1733541089788,-200.0,0.00015798,2]
[344549065,1733541089797,-200.0,0.00015798,3]
[344549066,1733541089809,-200.0,0.00015798,3]
[344549067,1733541089818,-1500.0,0.000158,2]
[344549068,1733541089828,-1500.0,0.0001585,2]
[344549069,1733541089838,-150.0,0.00015854,2]
[344549070,1733541089848,-150.0,0.00015862,2]
[344549071,1733541089858,-150.0,0.00015862,2]
[344549072,1733541089868,-150.0,0.00015862,2]
[344549073,1733541089878,-432.3180942,0.00015876,2]
[344549074,1733541089888,-150.0,0.00015877,2]
[344549075,1733541089897,-562.43,0.00015881,2]
[344549076,1733541089907,-500.0,0.00015881,2]
[344549077,1733541089917,-500.0,0.00015881,2]
[344549078,1733541089927,-156.21474,0.00015881,2]
[344549079,1733541089937,-569.03,0.00015881,2]
[344549080,1733541089947,-712.37,0.00015881,2]
[344549081,1733541089957,-755.27,0.00015881,2]
[344549082,1733541089967,-500.0,0.00015881,2]
[344549083,1733541089978,-500.0,0.00015881,2]
[344549084,1733541089989,-1134.32,0.00015881,2]
[344549085,1733541089998,-500.0,0.00015881,2]
[344549086,1733541090008,-729.35,0.00015881,2]
[344549087,1733541090018,-655.62,0.00015881,2]
[344549088,1733541090028,-500.0,0.00015881,2]
[344549089,1733541090038,-559.97,0.00015881,2]
[344549090,1733541090047,-629.17,0.00015881,2]
[344549091,1733541090060,-500.0,0.00015881,2]
[344549092,1733541090070,-522.4,0.00015881,2]
[344549093,1733541090080,-558.13,0.00015881,2]
[344549094,1733541090090,-596.81,0.00015881,2]
[344549095,1733541090100,-1715.02,0.00015881,2]